[Event "Rapid Tournament (RAP)"]
[Site "Biel, Switzerland"]
[Date "2026.07.12"]
[Round "3.30"]
[White "Javet, Blaise"]
[Black "Brixius, Dirk"]
[Result "0-1"]
[TimeControl "15 + 5"]
[WhiteTitle "-"]
[BlackTitle "-"]
[WhiteFideId "1305026"]
[BlackFideId "12909734"]
[WhiteElo "1980"]
[BlackElo "1821"]

1. e4 {[%clk 00:15:07]} {[%emt 00:00:05]} c6 {[%clk 00:15:09]} 2. d4 {[%clk
00:15:10]} {[%emt 00:00:02]} d5 {[%clk 00:15:12]} {[%emt 00:00:01]} 3. e5
{[%clk 00:14:58]} {[%emt 00:00:18]} c5 {[%clk 00:15:10]} {[%emt 00:00:05]} 4.
dxc5 {[%clk 00:15:00]} {[%emt 00:00:03]} Nc6 {[%clk 00:15:08]} {[%emt
00:00:07]} 5. Nf3 {[%clk 00:14:57]} {[%emt 00:00:07]} e6 {[%clk 00:15:08]}
{[%emt 00:00:07]} 6. c3 {[%clk 00:14:31]} {[%emt 00:00:31]} Bxc5 {[%clk
00:15:07]} {[%emt 00:00:06]} 7. Bd3 {[%clk 00:14:30]} {[%emt 00:00:05]} Nge7
{[%clk 00:15:02]} {[%emt 00:00:10]} 8. O-O {[%clk 00:14:32]} {[%emt 00:00:03]}
Ng6 {[%clk 00:14:55]} {[%emt 00:00:12]} 9. b4 {[%clk 00:14:24]} {[%emt
00:00:12]} Bb6 {[%clk 00:14:51]} {[%emt 00:00:10]} 10. Re1 {[%clk 00:14:28]}
{[%emt 00:00:02]} Qc7 {[%clk 00:13:44]} {[%emt 00:01:12]} 11. Qe2 {[%clk
00:13:19]} {[%emt 00:01:13]} Bd7 {[%clk 00:13:33]} {[%emt 00:00:16]} 12. a4
{[%clk 00:13:22]} {[%emt 00:00:02]} a5 {[%clk 00:12:58]} {[%emt 00:00:41]} 13.
b5 {[%clk 00:13:23]} {[%emt 00:00:04]} Nce7 {[%clk 00:12:52]} {[%emt 00:00:09]}
14. Ba3 {[%clk 00:12:01]} {[%emt 00:01:28]} Bc5 {[%clk 00:12:33]} {[%emt
00:00:24]} 15. Bxc5 {[%clk 00:11:13]} {[%emt 00:00:53]} Qxc5 {[%clk 00:12:36]}
{[%emt 00:00:02]} 16. Nbd2 {[%clk 00:11:17]} {[%emt 00:00:01]} O-O {[%clk
00:12:22]} {[%emt 00:00:19]} 17. Rec1 {[%clk 00:11:16]} {[%emt 00:00:06]} Nf4
{[%clk 00:12:05]} {[%emt 00:00:22]} 18. Qf1 {[%clk 00:11:05]} {[%emt 00:00:15]}
b6 {[%clk 00:11:28]} {[%emt 00:00:43]} 19. Nb3 {[%clk 00:10:21]} {[%emt
00:00:49]} Qc7 {[%clk 00:11:13]} {[%emt 00:00:19]} 20. Nbd2 {[%clk 00:10:08]}
{[%emt 00:00:19]} Rac8 {[%clk 00:11:02]} {[%emt 00:00:16]} 21. g3 {[%clk
00:09:53]} {[%emt 00:00:19]} Nxd3 {[%clk 00:10:57]} {[%emt 00:00:11]} 22. Qxd3
{[%clk 00:09:57]} {[%emt 00:00:02]} Ng6 {[%clk 00:10:49]} {[%emt 00:00:13]} 23.
Qd4 {[%clk 00:08:13]} {[%emt 00:01:49]} Qb8 {[%clk 00:10:27]} {[%emt 00:00:26]}
24. h4 {[%clk 00:07:58]} {[%emt 00:00:20]} Rfd8 {[%clk 00:09:44]} {[%emt
00:00:47]} 25. Re1 {[%clk 00:07:55]} {[%emt 00:00:09]} Rc5 {[%clk 00:09:26]}
{[%emt 00:00:23]} 26. Rac1 {[%clk 00:07:41]} {[%emt 00:00:20]} Rdc8 {[%clk
00:09:30]} {[%emt 00:00:01]} 27. h5 {[%clk 00:06:44]} {[%emt 00:01:01]} Ne7
{[%clk 00:09:26]} {[%emt 00:00:09]} 28. h6 {[%clk 00:06:23]} {[%emt 00:00:26]}
Nf5 {[%clk 00:09:17]} {[%emt 00:00:14]} 29. Qd3 {[%clk 00:05:16]} {[%emt
00:01:11]} Nxh6 {[%clk 00:09:04]} {[%emt 00:00:19]} 30. Kg2 {[%clk 00:05:08]}
{[%emt 00:00:13]} Qc7 {[%emt 00:00:24]} 31. Ng5 {[%clk 00:04:53]} Nf5 {[%clk
00:08:33]} {[%emt 00:00:36]} 32. g4 {[%clk 00:04:10]} {[%emt 00:00:49]} Qd8
{[%clk 00:08:23]} {[%emt 00:00:15]} 33. f4 {[%clk 00:03:56]} {[%emt 00:00:18]}
Nh4+ {[%clk 00:08:23]} {[%emt 00:00:05]} 34. Kf2 {[%clk 00:03:35]} {[%emt
00:00:26]} h6 {[%clk 00:07:30]} {[%emt 00:00:58]} 35. Ngf3 {[%clk 00:03:27]}
{[%emt 00:00:13]} Ng6 {[%clk 00:07:23]} {[%emt 00:00:12]} 36. Kg3 {[%clk
00:03:23]} {[%emt 00:00:09]} Qc7 {[%clk 00:07:13]} {[%emt 00:00:15]} 37. Re3
{[%clk 00:02:12]} {[%emt 00:01:16]} f5 {[%clk 00:05:24]} {[%emt 00:01:54]} 38.
g5 {[%clk 00:01:52]} {[%emt 00:00:25]} h5 {[%clk 00:04:39]} {[%emt 00:00:50]}
39. Nd4 {[%clk 00:01:51]} {[%emt 00:00:06]} h4+ {[%clk 00:04:25]} {[%emt
00:00:18]} 40. Kf3 {[%clk 00:01:56]} Kf7 {[%clk 00:04:17]} {[%emt 00:00:14]} 41.
N4b3 {[%clk 00:01:59]} {[%emt 00:00:02]} Rc4 {[%clk 00:03:46]} {[%emt
00:00:35]} 42. Nd4 {[%clk 00:02:02]} {[%emt 00:00:02]} Rxa4 {[%clk 00:03:35]}
{[%emt 00:00:17]} 43. c4 {[%clk 00:00:57]} {[%emt 00:01:10]} dxc4 {[%clk
00:03:20]} {[%emt 00:00:19]} 44. Qc3 {[%clk 00:00:59]} {[%emt 00:00:03]} Rb4
{[%clk 00:03:07]} {[%emt 00:00:18]} 45. Nxf5 {[%clk 00:01:01]} {[%emt
00:00:03]} exf5 {[%clk 00:02:54]} {[%emt 00:00:18]} 0-1

[Event "Rapid Tournament (RAP)"]
[Site "Biel, Switzerland"]
[Date "2026.07.12"]
[Round "3.31"]
[White "Moesching, Colin"]
[Black "Liengme, Samuel"]
[Result "1-0"]
[TimeControl "15 + 5"]
[WhiteTitle "-"]
[BlackTitle "-"]
[WhiteFideId "1345036"]
[BlackFideId "1368141"]
[WhiteElo "1820"]
[BlackElo "1967"]

1. e4 {[%clk 00:14:34]} {[%emt 00:00:36]} c6 {[%clk 00:15:09]} {[%emt
00:00:02]} 2. d4 {[%clk 00:14:37]} {[%emt 00:00:02]} d5 {[%clk 00:15:12]} 3.
exd5 {[%clk 00:14:39]} {[%emt 00:00:02]} cxd5 {[%clk 00:15:16]} {[%emt
00:00:02]} 4. Bd3 {[%clk 00:14:40]} {[%emt 00:00:04]} Nf6 {[%clk 00:15:18]}
{[%emt 00:00:03]} 5. Bf4 {[%clk 00:14:39]} {[%emt 00:00:05]} Nc6 {[%clk
00:15:20]} {[%emt 00:00:03]} 6. c3 {[%clk 00:14:42]} {[%emt 00:00:03]} Bg4
{[%clk 00:15:01]} {[%emt 00:00:23]} 7. Nf3 {[%clk 00:14:11]} {[%emt 00:00:37]}
e6 {[%clk 00:15:02]} {[%emt 00:00:05]} 8. Nbd2 {[%clk 00:13:58]} {[%emt
00:00:18]} Bd6 {[%clk 00:15:03]} {[%emt 00:00:03]} 9. Bg3 {[%clk 00:13:42]}
{[%emt 00:00:20]} O-O {[%clk 00:14:59]} {[%emt 00:00:09]} 10. O-O {[%clk
00:13:44]} {[%emt 00:00:03]} Rc8 {[%clk 00:14:41]} {[%emt 00:00:24]} 11. Qe1
{[%clk 00:13:26]} {[%emt 00:00:22]} Bxg3 {[%clk 00:14:19]} {[%emt 00:00:27]} 12.
fxg3 {[%clk 00:13:28]} {[%emt 00:00:04]} Qd6 {[%clk 00:13:52]} {[%emt
00:00:32]} 13. Ne5 {[%clk 00:11:58]} {[%emt 00:01:34]} Nxe5 {[%clk 00:13:43]}
{[%emt 00:00:14]} 14. dxe5 {[%clk 00:11:53]} {[%emt 00:00:10]} Qc5+ {[%clk
00:13:47]} {[%emt 00:00:02]} 15. Qf2 {[%clk 00:11:38]} {[%emt 00:00:20]} Nd7
{[%clk 00:13:50]} {[%emt 00:00:02]} 16. Rae1 {[%clk 00:11:25]} {[%emt
00:00:18]} Rc6 {[%clk 00:11:46]} {[%emt 00:02:09]} 17. Nb3 {[%clk 00:10:35]}
{[%emt 00:00:55]} Qb6 {[%clk 00:11:05]} {[%emt 00:00:47]} 18. Qd4 {[%clk
00:07:28]} {[%emt 00:03:11]} Qxd4+ {[%clk 00:09:58]} {[%emt 00:01:12]} 19. Nxd4
{[%clk 00:07:16]} {[%emt 00:00:17]} Rb6 {[%clk 00:10:00]} {[%emt 00:00:03]} 20.
Rf2 {[%clk 00:06:48]} {[%emt 00:00:34]} Nc5 {[%clk 00:09:40]} {[%emt 00:00:25]}
21. Bc2 {[%clk 00:06:18]} {[%emt 00:00:34]} g6 {[%clk 00:08:57]} {[%emt
00:00:48]} 22. b4 {[%clk 00:05:23]} {[%emt 00:01:01]} Nd7 {[%clk 00:08:41]}
{[%emt 00:00:21]} 23. h3 {[%clk 00:05:20]} {[%emt 00:00:08]} Bf5 {[%clk
00:08:44]} 24. Ba4 {[%clk 00:05:24]} {[%emt 00:00:01]} Rd8 {[%clk 00:08:05]}
{[%emt 00:00:42]} 25. Nb5 {[%clk 00:04:39]} {[%emt 00:00:52]} Ra6 {[%clk
00:07:20]} {[%emt 00:00:50]} 26. Bb3 {[%clk 00:04:30]} {[%emt 00:00:14]} Bd3
{[%clk 00:06:52]} {[%emt 00:00:33]} 27. Nd6 {[%clk 00:04:27]} {[%emt 00:00:08]}
Nxe5 {[%clk 00:06:47]} 28. Nxb7 {[%clk 00:04:31]} {[%emt 00:00:10]} Rc8 29.
Rxe5 {[%clk 00:04:23]} Rxc3 {[%clk 00:04:31]} {[%emt 00:00:27]} 30. Nc5 {[%clk
00:04:27]} {[%emt 00:00:02]} Rb6 {[%emt 00:00:25]} 31. Na4 {[%clk 00:04:30]}
Rc1+ {[%clk 00:04:12]} {[%emt 00:00:05]} 32. Kh2 {[%clk 00:04:31]} {[%emt
00:00:04]} Rxb4 {[%clk 00:04:10]} {[%emt 00:00:08]} 33. Re3 {[%clk 00:04:28]}
{[%emt 00:00:07]} Bc4 {[%clk 00:03:10]} {[%emt 00:01:05]} 34. Ref3 {[%clk
00:03:47]} {[%emt 00:00:46]} f5 {[%clk 00:02:54]} {[%emt 00:00:21]} 35. Re3
{[%clk 00:02:49]} {[%emt 00:01:02]} Kf7 {[%clk 00:02:39]} {[%emt 00:00:21]} 36.
Nc5 {[%clk 00:02:35]} {[%emt 00:00:19]} d4 {[%clk 00:02:17]} {[%emt 00:00:29]}
37. Ref3 {[%clk 00:01:54]} {[%emt 00:00:45]} e5 {[%clk 00:01:32]} {[%emt
00:00:50]} 38. Nd3 {[%clk 00:01:56]} {[%emt 00:00:03]} e4 {[%clk 00:01:04]}
{[%emt 00:00:33]} 39. Nxc1 {[%clk 00:01:55]} {[%emt 00:00:05]} exf3 {[%clk
00:00:59]} {[%emt 00:00:11]} 40. Rxf3 {[%clk 00:01:57]} {[%emt 00:00:03]} Kf6
{[%clk 00:00:47]} {[%emt 00:00:17]} 41. Nd3 {[%clk 00:01:48]} {[%emt 00:00:14]}
Bxd3 {[%clk 00:00:42]} {[%emt 00:00:10]} 42. Rxd3 {[%clk 00:01:52]} {[%emt
00:00:01]} Ke5 {[%clk 00:00:46]} {[%emt 00:00:02]} 43. Kg1 {[%clk 00:01:46]}
{[%emt 00:00:11]} Ke4 {[%clk 00:00:44]} {[%emt 00:00:07]} 44. Rd1 {[%clk
00:01:46]} {[%emt 00:00:03]} a5 {[%clk 00:00:42]} {[%emt 00:00:08]} 45. Kf2
{[%clk 00:01:48]} {[%emt 00:00:03]} a4 {[%clk 00:00:43]} {[%emt 00:00:05]} 46.
Bg8 {[%clk 00:01:49]} {[%emt 00:00:03]} Rb2+ {[%clk 00:00:46]} {[%emt
00:00:02]} 47. Kf1 {[%clk 00:01:47]} {[%emt 00:00:07]} Rxa2 {[%clk 00:00:48]}
{[%emt 00:00:04]} 48. Bxa2 {[%clk 00:01:50]} {[%emt 00:00:01]} 1-0

[Event "Rapid Tournament (RAP)"]
[Site "Biel, Switzerland"]
[Date "2026.07.12"]
[Round "3.32"]
[White "Papageorgiou Martinella, Ilios"]
[Black "Alexakis, Dimitrios"]
[Result "0-1"]
[TimeControl "15 + 5"]
[WhiteTitle "-"]
[BlackTitle "-"]
[WhiteFideId "1368494"]
[BlackFideId "4200527"]
[WhiteElo "1809"]
[BlackElo "1954"]

1. d4 {[%clk 00:15:09]} Nf6 {[%clk 00:15:07]} {[%emt 00:00:03]} 2. c4 {[%clk
00:15:13]} {[%emt 00:00:02]} c5 {[%clk 00:15:07]} {[%emt 00:00:03]} 3. d5
{[%clk 00:15:17]} {[%emt 00:00:02]} b5 {[%clk 00:15:11]} 4. cxb5 {[%clk
00:15:21]} {[%emt 00:00:01]} a6 {[%clk 00:15:15]} 5. e3 {[%clk 00:15:25]} g6
{[%clk 00:15:16]} {[%emt 00:00:04]} 6. Nc3 {[%clk 00:15:28]} {[%emt 00:00:02]}
Bg7 {[%clk 00:15:15]} {[%emt 00:00:06]} 7. Nf3 {[%clk 00:15:30]} {[%emt
00:00:03]} O-O {[%clk 00:15:16]} {[%emt 00:00:04]} 8. Be2 {[%clk 00:15:33]}
{[%emt 00:00:02]} d6 {[%clk 00:15:11]} {[%emt 00:00:10]} 9. O-O {[%clk
00:15:36]} {[%emt 00:00:03]} axb5 {[%clk 00:14:54]} {[%emt 00:00:22]} 10. Bxb5
{[%clk 00:15:39]} {[%emt 00:00:02]} Ba6 {[%clk 00:14:52]} {[%emt 00:00:06]} 11.
Re1 {[%clk 00:15:40]} {[%emt 00:00:04]} Qb6 {[%clk 00:14:37]} {[%emt 00:00:20]}
12. Bxa6 {[%clk 00:15:35]} {[%emt 00:00:11]} Nxa6 {[%clk 00:14:32]} {[%emt
00:00:09]} 13. e4 {[%clk 00:15:32]} {[%emt 00:00:08]} Nd7 {[%clk 00:14:25]}
{[%emt 00:00:12]} 14. Nd2 {[%clk 00:15:31]} {[%emt 00:00:06]} Nb4 {[%clk
00:13:50]} {[%emt 00:00:40]} 15. a3 {[%clk 00:15:15]} {[%emt 00:00:22]} Qa6
{[%clk 00:12:56]} {[%emt 00:00:58]} 16. Nb3 {[%clk 00:14:41]} {[%emt 00:00:40]}
Nd3 {[%clk 00:12:45]} {[%emt 00:00:15]} 17. Re3 {[%clk 00:14:34]} {[%emt
00:00:12]} Nxc1 {[%clk 00:12:46]} {[%emt 00:00:04]} 18. Rxc1 {[%clk 00:14:35]}
{[%emt 00:00:03]} Bh6 {[%clk 00:12:33]} {[%emt 00:00:18]} 19. Rh3 {[%clk
00:13:29]} {[%emt 00:01:11]} Bxc1 {[%clk 00:12:34]} {[%emt 00:00:05]} 20. Qxc1
{[%clk 00:13:31]} {[%emt 00:00:02]} Rfb8 {[%clk 00:12:04]} {[%emt 00:00:36]} 21.
Nd2 {[%clk 00:13:32]} {[%emt 00:00:04]} Qb7 {[%clk 00:10:17]} {[%emt 00:01:52]}
22. Nd1 {[%clk 00:12:47]} {[%emt 00:00:49]} Qb5 {[%clk 00:09:56]} {[%emt
00:00:27]} 23. Nf3 {[%clk 00:12:36]} {[%emt 00:00:16]} Qe2 {[%clk 00:09:31]}
{[%emt 00:00:29]} 24. Qd2 {[%clk 00:09:49]} {[%emt 00:02:52]} Qxd2 {[%clk
00:08:46]} {[%emt 00:00:51]} 25. Nxd2 {[%clk 00:09:53]} {[%emt 00:00:01]} Ra4
{[%clk 00:08:43]} {[%emt 00:00:08]} 26. Rc3 {[%clk 00:05:37]} {[%emt 00:04:21]}
Rd4 {[%clk 00:07:41]} {[%emt 00:01:07]} 27. Rc2 {[%clk 00:05:39]} {[%emt
00:00:02]} Ne5 {[%clk 00:06:25]} {[%emt 00:01:22]} 28. f4 {[%clk 00:04:58]}
{[%emt 00:00:46]} Nc4 {[%clk 00:06:12]} {[%emt 00:00:17]} 29. Nxc4 {[%clk
00:04:46]} {[%emt 00:00:17]} Rxd1+ {[%clk 00:06:15]} {[%emt 00:00:03]} 30. Kf2
{[%clk 00:04:49]} {[%emt 00:00:02]} Rd4 {[%clk 00:05:38]} {[%emt 00:00:41]} 31.
Ke3 {[%clk 00:04:46]} {[%emt 00:00:09]} Rb3+ {[%clk 00:05:40]} {[%emt
00:00:03]} 32. Kf2 {[%clk 00:04:42]} {[%emt 00:00:09]} Rxe4 {[%clk 00:05:26]}
{[%emt 00:00:18]} 33. Nd2 {[%clk 00:04:45]} {[%emt 00:00:02]} Rxf4+ {[%clk
00:05:30]} {[%emt 00:00:02]} 34. Ke2 {[%clk 00:04:45]} {[%emt 00:00:05]} Rb8
{[%clk 00:05:25]} {[%emt 00:00:10]} 35. Ke3 {[%clk 00:04:44]} {[%emt 00:00:06]}
Rf5 {[%clk 00:05:18]} {[%emt 00:00:12]} 0-1

[Event "Rapid Tournament (RAP)"]
[Site "Biel, Switzerland"]
[Date "2026.07.12"]
[Round "3.33"]
[White "Laub, Patrick"]
[Black "Arocha, Carlos"]
[Result "1-0"]
[TimeControl "15 + 5"]
[WhiteTitle "-"]
[BlackTitle "-"]
[WhiteFideId "1302566"]
[BlackFideId "1311590"]
[WhiteElo "1949"]
[BlackElo "1807"]

1. e4 {[%clk 00:14:59]} {[%emt 00:00:10]} g6 {[%clk 00:15:06]} {[%emt
00:00:05]} 2. d4 {[%clk 00:14:59]} {[%emt 00:00:05]} Bg7 {[%clk 00:15:10]}
{[%emt 00:00:02]} 3. Nc3 {[%clk 00:14:53]} {[%emt 00:00:11]} d6 {[%clk
00:15:14]} {[%emt 00:00:01]} 4. f4 {[%clk 00:14:50]} {[%emt 00:00:07]} Nf6
{[%clk 00:14:58]} {[%emt 00:00:21]} 5. Nf3 {[%clk 00:14:51]} {[%emt 00:00:04]}
O-O {[%clk 00:14:43]} {[%emt 00:00:20]} 6. Bc4 {[%clk 00:14:25]} {[%emt
00:00:30]} e6 {[%clk 00:14:03]} {[%emt 00:00:46]} 7. O-O {[%clk 00:14:02]}
{[%emt 00:00:28]} a6 {[%clk 00:12:44]} {[%emt 00:01:24]} 8. Bb3 {[%clk
00:14:00]} {[%emt 00:00:07]} b5 {[%clk 00:12:41]} {[%emt 00:00:09]} 9. e5
{[%clk 00:13:30]} {[%emt 00:00:35]} dxe5 {[%clk 00:12:19]} {[%emt 00:00:26]} 10.
fxe5 {[%clk 00:13:33]} {[%emt 00:00:03]} Nd5 {[%clk 00:10:43]} {[%emt
00:01:41]} 11. Ne4 {[%clk 00:12:01]} {[%emt 00:01:37]} f5 {[%clk 00:10:24]}
{[%emt 00:00:24]} 12. exf6 {[%clk 00:12:01]} {[%emt 00:00:04]} Nxf6 {[%clk
00:10:15]} {[%emt 00:00:14]} 13. Bg5 {[%clk 00:11:48]} {[%emt 00:00:18]} h6
{[%clk 00:09:34]} {[%emt 00:00:46]} 14. Nxf6+ {[%clk 00:11:48]} {[%emt
00:00:06]} Bxf6 {[%clk 00:09:35]} {[%emt 00:00:03]} 15. Bxh6 {[%clk 00:11:48]}
{[%emt 00:00:05]} Re8 {[%clk 00:09:13]} {[%emt 00:00:27]} 16. Qd3 {[%clk
00:11:31]} {[%emt 00:00:23]} Kh7 {[%clk 00:08:50]} {[%emt 00:00:27]} 17. Be3
{[%clk 00:11:16]} {[%emt 00:00:21]} Bb7 {[%clk 00:08:29]} {[%emt 00:00:25]} 18.
Rad1 {[%clk 00:09:59]} {[%emt 00:01:22]} Nd7 {[%clk 00:08:14]} {[%emt
00:00:20]} 19. c3 {[%clk 00:09:40]} {[%emt 00:00:24]} Qe7 {[%clk 00:07:51]}
{[%emt 00:00:28]} 20. Bc2 {[%clk 00:09:31]} {[%emt 00:00:15]} Qg7 {[%clk
00:07:41]} {[%emt 00:00:13]} 21. Ng5+ {[%clk 00:09:03]} {[%emt 00:00:34]} Bxg5
{[%clk 00:07:09]} {[%emt 00:00:37]} 22. Bxg5 {[%clk 00:09:05]} {[%emt
00:00:03]} Rf8 {[%clk 00:07:04]} {[%emt 00:00:10]} 23. Qh3+ {[%clk 00:08:57]}
{[%emt 00:00:14]} Kg8 {[%clk 00:07:06]} {[%emt 00:00:02]} 24. Qxe6+ {[%clk
00:08:59]} {[%emt 00:00:03]} Kh7 {[%clk 00:07:00]} {[%emt 00:00:11]} 25. Qh3+
{[%clk 00:09:00]} {[%emt 00:00:05]} Kg8 {[%clk 00:07:04]} 26. Bb3+ {[%clk
00:09:03]} {[%emt 00:00:01]} 1-0

[Event "Rapid Tournament (RAP)"]
[Site "Biel, Switzerland"]
[Date "2026.07.12"]
[Round "3.34"]
[White "Mueller, Ladina"]
[Black "Schwab, Felix"]
[Result "0-1"]
[TimeControl "15 + 5"]
[WhiteTitle "-"]
[BlackTitle "-"]
[WhiteFideId "1351907"]
[BlackFideId "1311450"]
[WhiteElo "1807"]
[BlackElo "1945"]

1. c4 {[%clk 00:15:07]} {[%emt 00:00:03]} c5 {[%clk 00:15:04]} {[%emt
00:00:07]} 2. Nc3 {[%clk 00:15:10]} {[%emt 00:00:01]} Nf6 {[%clk 00:15:07]}
{[%emt 00:00:02]} 3. g3 {[%clk 00:15:13]} {[%emt 00:00:02]} d5 {[%clk
00:15:10]} {[%emt 00:00:02]} 4. cxd5 {[%clk 00:15:11]} {[%emt 00:00:07]} Nxd5
{[%clk 00:15:14]} {[%emt 00:00:01]} 5. Bg2 {[%clk 00:15:09]} {[%emt 00:00:07]}
e6 {[%clk 00:15:01]} {[%emt 00:00:18]} 6. e3 {[%clk 00:15:09]} {[%emt
00:00:04]} Nc6 {[%clk 00:14:57]} {[%emt 00:00:09]} 7. Nge2 {[%clk 00:15:09]}
{[%emt 00:00:05]} Ndb4 {[%clk 00:14:49]} {[%emt 00:00:14]} 8. O-O {[%clk
00:14:26]} {[%emt 00:00:47]} Nd3 {[%clk 00:14:33]} {[%emt 00:00:21]} 9. b3
{[%clk 00:14:14]} {[%emt 00:00:17]} Be7 {[%clk 00:14:00]} {[%emt 00:00:39]} 10.
Ba3 {[%clk 00:13:43]} {[%emt 00:00:34]} O-O {[%clk 00:12:56]} {[%emt 00:01:11]}
11. Ne4 {[%clk 00:13:01]} {[%emt 00:00:45]} f5 {[%clk 00:12:40]} {[%emt
00:00:22]} 12. N4c3 {[%clk 00:12:56]} {[%emt 00:00:11]} Bd7 {[%clk 00:11:45]}
{[%emt 00:01:00]} 13. Qc2 {[%clk 00:11:54]} {[%emt 00:01:06]} Ncb4 {[%clk
00:11:13]} {[%emt 00:00:38]} 14. Qb1 {[%clk 00:11:01]} {[%emt 00:00:56]} Bc6
{[%clk 00:11:08]} {[%emt 00:00:11]} 15. Nc1 {[%clk 00:10:37]} {[%emt 00:00:29]}
Bxg2 {[%clk 00:10:41]} {[%emt 00:00:32]} 16. Kxg2 {[%clk 00:10:40]} {[%emt
00:00:03]} Qd7 {[%clk 00:10:00]} {[%emt 00:00:46]} 17. Nxd3 {[%clk 00:10:16]}
{[%emt 00:00:29]} Nxd3 {[%clk 00:09:56]} {[%emt 00:00:09]} 18. Ne2 {[%clk
00:09:56]} {[%emt 00:00:24]} Bf6 {[%clk 00:09:36]} {[%emt 00:00:26]} 19. Nc3
{[%clk 00:09:54]} {[%emt 00:00:07]} b5 {[%clk 00:09:02]} {[%emt 00:00:39]} 20.
b4 {[%clk 00:09:18]} {[%emt 00:00:42]} c4 {[%clk 00:08:49]} {[%emt 00:00:18]}
21. Qc2 {[%clk 00:08:51]} {[%emt 00:00:31]} Qc6+ {[%clk 00:08:08]} {[%emt
00:00:45]} 22. f3 {[%clk 00:08:25]} {[%emt 00:00:32]} Rfd8 {[%clk 00:07:58]}
{[%emt 00:00:15]} 23. Rad1 {[%clk 00:08:12]} {[%emt 00:00:17]} a5 {[%clk
00:06:58]} {[%emt 00:01:06]} 24. Qb1 {[%clk 00:05:58]} {[%emt 00:02:18]} axb4
{[%clk 00:06:31]} {[%emt 00:00:33]} 25. Bxb4 {[%clk 00:06:01]} {[%emt
00:00:03]} Nxb4 {[%clk 00:06:32]} {[%emt 00:00:03]} 26. Qxb4 {[%clk 00:06:00]}
{[%emt 00:00:06]} Bxc3 {[%clk 00:06:34]} {[%emt 00:00:03]} 27. dxc3 {[%clk
00:06:02]} {[%emt 00:00:03]} Rxa2+ {[%clk 00:06:36]} {[%emt 00:00:03]} 28. Kg1
{[%clk 00:05:45]} {[%emt 00:00:22]} Rxd1 {[%clk 00:05:08]} {[%emt 00:01:33]} 29.
Rxd1 {[%clk 00:05:48]} {[%emt 00:00:01]} Qxf3 {[%clk 00:05:07]} {[%emt
00:00:06]} 30. Rd8+ {[%clk 00:05:46]} {[%emt 00:00:07]} Kf7 {[%clk 00:05:10]}
{[%emt 00:00:02]} 31. Qf8+ {[%clk 00:05:37]} {[%emt 00:00:14]} Kg6 {[%clk
00:05:13]} {[%emt 00:00:02]} 32. Qe8+ {[%clk 00:05:35]} {[%emt 00:00:06]} Kh6
{[%clk 00:05:10]} {[%emt 00:00:09]} 33. Qxe6+ {[%clk 00:05:26]} {[%emt
00:00:15]} g6 {[%clk 00:05:14]} 0-1

[Event "Rapid Tournament (RAP)"]
[Site "Biel, Switzerland"]
[Date "2026.07.12"]
[Round "3.35"]
[White "Tcheau, Alain"]
[Black "Alrefae, Ahmad"]
[Result "0-1"]
[TimeControl "15 + 5"]
[WhiteTitle "-"]
[BlackTitle "-"]
[WhiteFideId "1306014"]
[BlackFideId "10306510"]
[WhiteElo "1932"]
[BlackElo "1797"]

1. h3 {[%clk 00:15:07]} {[%emt 00:00:02]} e5 {[%clk 00:15:01]} {[%emt
00:00:10]} 2. c3 {[%clk 00:15:11]} {[%emt 00:00:03]} d5 {[%clk 00:15:03]} 3. d4
{[%clk 00:15:14]} e4 {[%clk 00:15:05]} {[%emt 00:00:06]} 4. Bf4 {[%clk
00:15:18]} h5 {[%clk 00:15:03]} {[%emt 00:00:05]} 5. e3 {[%clk 00:14:25]}
{[%emt 00:00:58]} g5 {[%clk 00:14:46]} {[%emt 00:00:23]} 6. Bh2 {[%clk
00:14:28]} {[%emt 00:00:02]} Bd6 {[%clk 00:14:47]} {[%emt 00:00:04]} 7. Bxd6
{[%clk 00:14:26]} {[%emt 00:00:07]} Qxd6 {[%clk 00:14:50]} {[%emt 00:00:02]} 8.
Nd2 {[%clk 00:14:23]} {[%emt 00:00:08]} Nf6 {[%clk 00:14:28]} {[%emt 00:00:26]}
9. Qb3 {[%clk 00:14:16]} {[%emt 00:00:13]} Nbd7 {[%clk 00:14:24]} {[%emt
00:00:09]} 10. O-O-O {[%clk 00:14:16]} {[%emt 00:00:04]} Nb6 {[%clk 00:14:27]}
{[%emt 00:00:02]} 11. Kb1 {[%clk 00:14:09]} {[%emt 00:00:13]} a5 {[%clk
00:14:08]} {[%emt 00:00:24]} 12. c4 {[%clk 00:13:58]} {[%emt 00:00:16]} a4
{[%clk 00:13:45]} {[%emt 00:00:27]} 13. Qc3 {[%clk 00:13:57]} {[%emt 00:00:06]}
c5 {[%clk 00:13:39]} {[%emt 00:00:12]} 14. dxc5 {[%clk 00:13:52]} {[%emt
00:00:10]} Qxc5 {[%clk 00:12:55]} {[%emt 00:00:49]} 15. Qxf6 {[%clk 00:13:52]}
{[%emt 00:00:05]} Rg8 {[%clk 00:12:59]} 16. Qe5+ {[%clk 00:13:37]} {[%emt
00:00:19]} Be6 {[%clk 00:12:53]} {[%emt 00:00:11]} 17. cxd5 {[%clk 00:13:22]}
{[%emt 00:00:20]} Rc8 {[%clk 00:12:53]} {[%emt 00:00:06]} 18. Qxe4 {[%clk
00:12:30]} {[%emt 00:00:56]} Nxd5 {[%clk 00:12:54]} {[%emt 00:00:04]} 19. Ne2
{[%clk 00:11:13]} {[%emt 00:01:22]} Kf8 {[%clk 00:12:19]} {[%emt 00:00:40]} 20.
Rc1 {[%clk 00:10:58]} {[%emt 00:00:20]} Qa5 {[%clk 00:10:45]} {[%emt 00:01:39]}
21. Rxc8+ {[%clk 00:10:43]} {[%emt 00:00:21]} Bxc8 {[%clk 00:10:48]} {[%emt
00:00:01]} 22. Qc2 {[%clk 00:08:38]} {[%emt 00:02:10]} Bf5 {[%clk 00:10:27]}
{[%emt 00:00:26]} 23. e4 {[%clk 00:08:20]} {[%emt 00:00:23]} Nb4 {[%clk
00:10:32]} {[%emt 00:00:01]} 24. Qc3 {[%clk 00:07:50]} {[%emt 00:00:35]} Rg6
{[%clk 00:09:42]} {[%emt 00:00:55]} 25. Nd4 {[%clk 00:07:43]} {[%emt 00:00:11]}
Bd7 {[%clk 00:08:46]} {[%emt 00:01:01]} 26. Nc4 {[%clk 00:07:41]} {[%emt
00:00:08]} Qc5 {[%clk 00:08:40]} {[%emt 00:00:11]} 27. Be2 {[%clk 00:06:44]}
{[%emt 00:01:02]} Rf6 {[%clk 00:08:23]} {[%emt 00:00:22]} 28. f3 {[%clk
00:05:35]} {[%emt 00:01:14]} Rf4 {[%clk 00:06:38]} {[%emt 00:01:49]} 29. g3
{[%clk 00:05:17]} {[%emt 00:00:23]} Rf6 {[%clk 00:06:39]} {[%emt 00:00:05]} 30.
Nf5 {[%clk 00:05:20]} {[%emt 00:00:02]} Rxf5 {[%clk 00:06:31]} {[%emt
00:00:12]} 31. exf5 {[%clk 00:04:45]} {[%emt 00:00:40]} Bxf5+ {[%clk 00:06:34]}
{[%emt 00:00:02]} 32. Kc1 {[%clk 00:04:47]} {[%emt 00:00:04]} Nxa2+ {[%clk
00:06:37]} {[%emt 00:00:02]} 33. Kd2 {[%clk 00:04:28]} {[%emt 00:00:23]} Nxc3
{[%clk 00:06:40]} {[%emt 00:00:03]} 34. Kxc3 {[%clk 00:04:26]} {[%emt
00:00:07]} b5 {[%clk 00:06:40]} {[%emt 00:00:04]} 0-1